[Event "FINAL CAMPEONATO ABSOLUTO DE AJEDREZ CHILE 2018"]
[Site "CENTRO CULTURAL LO PRADO, Chile"]
[Date "2018.02.25"]
[Round "2.1"]
[White "LLORENS SEPULVEDA, Marcelo"]
[Black "ABARCA GONZALEZ, Nicolas"]
[Result "0-1"]
[TimeControl "90 minutos mas 30 segundos de incremento por movida"]
[WhiteTitle "FM"]
[WhiteElo "2266"]
[BlackElo "2388"]

1. e4 {[%clk 01:30:57]} {[%emt 00:00:01]} e5 {[%clk 01:30:27]} {[%emt
00:00:34]} 2. Nf3 {[%clk 01:30:17]} {[%emt 00:01:09]} Nc6 {[%clk 01:30:54]}
{[%emt 00:00:05]} 3. Bb5 {[%clk 01:29:20]} {[%emt 00:01:27]} a6 {[%clk
01:31:20]} {[%emt 00:00:04]} 4. Ba4 {[%clk 01:29:43]} {[%emt 00:00:06]} Nf6
{[%clk 01:31:48]} {[%emt 00:00:03]} 5. Qe2 {[%clk 01:30:04]} {[%emt 00:00:08]}
b5 {[%clk 01:32:14]} {[%emt 00:00:05]} 6. Bb3 {[%clk 01:30:29]} {[%emt
00:00:05]} Bc5 {[%clk 01:32:41]} {[%emt 00:00:03]} 7. a4 {[%clk 01:30:40]}
{[%emt 00:00:19]} Rb8 {[%clk 01:32:22]} {[%emt 00:00:49]} 8. axb5 {[%clk
01:29:04]} {[%emt 00:02:06]} axb5 {[%clk 01:32:48]} {[%emt 00:00:04]} 9. O-O
{[%clk 01:29:15]} {[%emt 00:00:19]} O-O {[%clk 01:32:40]} {[%emt 00:00:38]} 10.
d3 {[%clk 01:29:37]} {[%emt 00:00:07]} d6 {[%clk 01:17:28]} {[%emt 00:15:42]}
11. Bg5 {[%clk 01:23:34]} {[%emt 00:06:31]} Bg4 {[%clk 01:13:59]} {[%emt
00:04:00]} 12. c3 {[%clk 01:23:45]} {[%emt 00:00:19]} h6 {[%clk 01:14:02]}
{[%emt 00:00:28]} 13. Be3 {[%clk 01:19:43]} {[%emt 00:04:32]} Bxe3 {[%clk
01:11:17]} {[%emt 00:03:15]} 14. Qxe3 {[%clk 01:13:55]} {[%emt 00:06:18]} Re8
{[%clk 00:56:02]} {[%emt 00:15:46]} 15. Nbd2 {[%clk 01:10:02]} {[%emt
00:04:22]} Nh5 {[%clk 00:50:05]} {[%emt 00:06:27]} 16. Rfe1 {[%clk 00:47:07]}
{[%emt 00:23:24]} Qd7 {[%clk 00:47:13]} {[%emt 00:03:23]} 17. Nf1 {[%clk
00:46:41]} {[%emt 00:00:56]} Ra8 {[%clk 00:46:33]} {[%emt 00:01:10]} 18. Rxa8
{[%clk 00:32:16]} {[%emt 00:14:55]} Rxa8 {[%clk 00:46:52]} {[%emt 00:00:11]} 19.
Nh4 {[%clk 00:32:38]} {[%emt 00:00:07]} Be6 {[%clk 00:44:35]} {[%emt 00:02:48]}
20. Bd1 {[%clk 00:32:26]} {[%emt 00:00:42]} Nf4 {[%clk 00:38:27]} {[%emt
00:06:39]} 21. d4 {[%clk 00:26:50]} {[%emt 00:06:05]} Bc4 {[%clk 00:34:17]}
{[%emt 00:04:40]} 22. b3 {[%clk 00:22:06]} {[%emt 00:05:15]} Bxf1 {[%clk
00:32:05]} {[%emt 00:02:42]} 23. Kxf1 {[%clk 00:22:23]} {[%emt 00:00:13]} b4
{[%clk 00:31:07]} {[%emt 00:01:29]} 24. d5 {[%clk 00:22:40]} {[%emt 00:00:12]}
Ne7 {[%clk 00:30:46]} {[%emt 00:00:51]} 25. c4 {[%clk 00:23:00]} {[%emt
00:00:10]} g5 {[%clk 00:27:58]} {[%emt 00:03:18]} 26. Qg3 {[%clk 00:18:22]}
{[%emt 00:05:08]} Kf8 {[%clk 00:24:17]} {[%emt 00:04:13]} 27. Bg4 {[%clk
00:05:50]} {[%emt 00:13:00]} gxh4 {[%clk 00:24:32]} {[%emt 00:00:16]} 28. Qxh4
{[%clk 00:03:08]} {[%emt 00:03:12]} Qd8 {[%clk 00:24:21]} {[%emt 00:00:41]} 29.
Qxh6+ {[%clk 00:03:31]} {[%emt 00:00:08]} Kg8 {[%clk 00:24:48]} {[%emt
00:00:03]} 30. g3 {[%clk 00:03:54]} {[%emt 00:00:06]} Nfg6 {[%clk 00:24:28]}
{[%emt 00:00:50]} 31. Re3 {[%clk 00:04:20]} {[%emt 00:00:04]} Qf8 {[%clk
00:20:31]} {[%emt 00:04:28]} 32. Qg5 {[%clk 00:04:43]} {[%emt 00:00:06]} f6
{[%clk 00:11:12]} {[%emt 00:09:50]} 33. Be6+ {[%clk 00:05:08]} {[%emt
00:00:05]} Kh7 {[%clk 00:11:34]} {[%emt 00:00:08]} 34. Qg4 {[%clk 00:05:03]}
{[%emt 00:00:34]} Qh6 {[%clk 00:10:22]} {[%emt 00:01:42]} 35. h4 {[%clk
00:05:03]} {[%emt 00:00:30]} Kh8 {[%clk 00:08:34]} {[%emt 00:02:19]} 36. Kg2
{[%clk 00:05:13]} {[%emt 00:00:20]} Ra1 {[%clk 00:08:27]} {[%emt 00:00:37]} 37.
Bf7 {[%clk 00:04:37]} {[%emt 00:01:05]} Qg7 {[%clk 00:06:59]} {[%emt 00:01:59]}
38. Be6 {[%clk 00:03:36]} {[%emt 00:01:31]} Qh6 {[%clk 00:07:01]} {[%emt
00:00:28]} 39. Bf7 {[%clk 00:04:00]} {[%emt 00:00:06]} Nf8 {[%clk 00:05:43]}
{[%emt 00:01:47]} 40. Be6 {[%clk 00:03:33]} {[%emt 00:00:58]} Qg6 {[%clk
00:04:06]} {[%emt 00:02:07]} 41. Qh3 {[%clk 00:01:37]} {[%emt 00:02:25]} Rc1
{[%clk 00:04:29]} {[%emt 00:00:08]} 42. Bd7 {[%clk 00:01:15]} {[%emt 00:00:53]}
Rc3 {[%clk 00:04:18]} {[%emt 00:00:41]} 43. Re1 {[%clk 00:01:05]} {[%emt
00:00:40]} Rxb3 {[%clk 00:04:34]} {[%emt 00:00:14]} 44. h5 {[%clk 00:01:01]}
{[%emt 00:00:34]} Qg5 {[%clk 00:04:57]} {[%emt 00:00:07]} 45. Ra1 {[%clk
00:01:25]} {[%emt 00:00:05]} Ra3 {[%clk 00:05:21]} {[%emt 00:00:07]} 46. Rb1
{[%clk 00:01:49]} {[%emt 00:00:06]} Ra2 {[%clk 00:05:03]} {[%emt 00:00:48]} 47.
Rb3 {[%clk 00:01:29]} {[%emt 00:00:50]} Ra1 {[%clk 00:02:37]} {[%emt 00:02:56]}
48. Qg4 {[%clk 00:00:35]} {[%emt 00:01:23]} Qc1 {[%clk 00:01:50]} {[%emt
00:01:17]} 0-1

[Event "FINAL CAMPEONATO ABSOLUTO DE AJEDREZ CHILE 2018"]
[Site "CENTRO CULTURAL LO PRADO, Chile"]
[Date "2018.02.25"]
[Round "2.2"]
[White "FUENTES PARRA, Victor Ignacio"]
[Black "GARCIA CARDENAS, Pablo"]
[Result "0-1"]
[TimeControl "90 minutos mas 30 segundos de incremento por movida"]
[BlackTitle "IM"]
[WhiteElo "2148"]
[BlackElo "2454"]

1. d4 {[%clk 01:30:56]} {[%emt 00:00:03]} Nf6 {[%clk 01:30:54]} {[%emt
00:00:06]} 2. Nf3 {[%clk 01:31:17]} {[%emt 00:00:09]} d5 {[%clk 01:31:17]}
{[%emt 00:00:06]} 3. e3 {[%clk 01:30:31]} {[%emt 00:01:16]} Bg4 {[%clk
01:26:15]} {[%emt 00:05:32]} 4. b3 {[%clk 01:30:01]} {[%emt 00:01:01]} e6
{[%clk 01:26:23]} {[%emt 00:00:22]} 5. Bb2 {[%clk 01:29:58]} {[%emt 00:00:33]}
c5 {[%clk 01:24:33]} {[%emt 00:02:20]} 6. Nbd2 {[%clk 01:29:23]} {[%emt
00:01:05]} Nc6 {[%clk 01:22:38]} {[%emt 00:02:25]} 7. a3 {[%clk 01:29:08]}
{[%emt 00:00:45]} Bd6 {[%clk 01:16:39]} {[%emt 00:06:29]} 8. Be2 {[%clk
01:28:40]} {[%emt 00:00:57]} cxd4 {[%clk 01:14:14]} {[%emt 00:02:55]} 9. exd4
{[%clk 01:22:39]} {[%emt 00:06:31]} Qc7 {[%clk 01:10:37]} {[%emt 00:04:07]} 10.
c4 {[%clk 01:22:38]} {[%emt 00:00:31]} O-O {[%clk 01:08:34]} {[%emt 00:02:33]}
11. O-O {[%clk 01:19:14]} {[%emt 00:03:54]} dxc4 {[%clk 01:00:54]} {[%emt
00:08:10]} 12. bxc4 {[%clk 01:18:44]} {[%emt 00:01:00]} Ne7 {[%clk 00:45:25]}
{[%emt 00:15:58]} 13. h3 {[%clk 01:13:15]} {[%emt 00:06:00]} Bh5 {[%clk
00:43:23]} {[%emt 00:02:32]} 14. Ng5 {[%clk 01:06:55]} {[%emt 00:06:50]} Bg6
{[%clk 00:37:23]} {[%emt 00:06:31]} 15. Bf3 {[%clk 01:02:26]} {[%emt 00:04:59]}
Bf4 {[%clk 00:35:28]} {[%emt 00:02:24]} 16. h4 {[%clk 00:39:14]} {[%emt
00:23:42]} Nf5 {[%clk 00:34:43]} {[%emt 00:01:15]} 17. h5 {[%clk 00:04:40]}
{[%emt 00:35:04]} Bxg5 {[%clk 00:25:38]} {[%emt 00:09:35]} 18. hxg6 {[%clk
00:05:00]} {[%emt 00:00:11]} hxg6 {[%clk 00:26:06]} {[%emt 00:00:02]} 19. Be2
{[%clk 00:00:41]} {[%emt 00:04:48]} Rfd8 {[%clk 00:24:24]} {[%emt 00:02:11]} 20.
Nf3 {[%clk 00:00:54]} {[%emt 00:00:18]} Bf4 {[%clk 00:24:50]} {[%emt 00:00:04]}
21. Qb3 {[%clk 00:00:40]} {[%emt 00:00:44]} g5 {[%clk 00:24:29]} {[%emt
00:00:51]} 22. Rfd1 {[%clk 00:00:38]} {[%emt 00:00:32]} g4 {[%clk 00:24:50]}
{[%emt 00:00:10]} 23. Ne5 {[%clk 00:00:43]} {[%emt 00:00:25]} Nxd4 {[%clk
00:24:50]} {[%emt 00:00:29]} 24. Rxd4 {[%clk 00:00:32]} {[%emt 00:00:42]} Bxe5
{[%clk 00:24:59]} {[%emt 00:00:21]} 25. Rxd8+ {[%clk 00:00:46]} {[%emt
00:00:16]} Rxd8 {[%clk 00:25:23]} {[%emt 00:00:05]} 26. Rb1 {[%clk 00:00:32]}
{[%emt 00:00:44]} Rd2 {[%clk 00:23:19]} {[%emt 00:02:34]} 27. Bf1 {[%clk
00:00:32]} {[%emt 00:00:31]} Bh2+ {[%clk 00:19:38]} {[%emt 00:04:10]} 28. Kh1
{[%clk 00:00:58]} {[%emt 00:00:04]} Ne4 {[%clk 00:20:03]} {[%emt 00:00:06]} 0-1

[Event "FINAL CAMPEONATO ABSOLUTO DE AJEDREZ CHILE 2018"]
[Site "CENTRO CULTURAL LO PRADO, Chile"]
[Date "2018.02.25"]
[Round "2.3"]
[White "AGUIRRE CONTRERAS, Cristian Ro"]
[Black "DIAZ VILLAGRAN, Robert"]
[Result "1-0"]
[TimeControl "90 minutos mas 30 segundos de incremento por movida"]
[WhiteTitle "FM"]
[BlackTitle "FM"]
[WhiteElo "2272"]
[BlackElo "2317"]

1. e4 {[%clk 01:30:57]} {[%emt 00:00:03]} e6 {[%clk 01:29:05]} {[%emt
00:01:55]} 2. d4 {[%clk 01:31:03]} {[%emt 00:00:24]} d5 {[%clk 01:29:27]}
{[%emt 00:00:08]} 3. Nd2 {[%clk 01:31:22]} {[%emt 00:00:11]} Nc6 {[%clk
01:24:38]} {[%emt 00:05:19]} 4. Ngf3 {[%clk 01:29:00]} {[%emt 00:02:52]} Nf6
{[%clk 01:25:00]} {[%emt 00:00:08]} 5. e5 {[%clk 01:28:49]} {[%emt 00:00:41]}
Nd7 {[%clk 01:25:29]} {[%emt 00:00:02]} 6. Nb3 {[%clk 01:26:17]} {[%emt
00:03:02]} a5 {[%clk 01:22:51]} {[%emt 00:03:08]} 7. a4 {[%clk 01:24:24]}
{[%emt 00:02:23]} b6 {[%clk 01:11:22]} {[%emt 00:12:00]} 8. Bg5 {[%clk
01:12:24]} {[%emt 00:12:30]} Be7 {[%clk 01:08:11]} {[%emt 00:03:41]} 9. h4
{[%clk 01:12:38]} {[%emt 00:00:15]} Ba6 {[%clk 01:02:19]} {[%emt 00:06:22]} 10.
Bxa6 {[%clk 01:06:54]} {[%emt 00:06:14]} Rxa6 {[%clk 01:02:35]} {[%emt
00:00:14]} 11. c3 {[%clk 01:07:08]} {[%emt 00:00:15]} Ra7 {[%clk 00:50:27]}
{[%emt 00:12:38]} 12. Qd3 {[%clk 01:01:04]} {[%emt 00:06:34]} Ncb8 {[%clk
00:43:01]} {[%emt 00:07:56]} 13. Rh3 {[%clk 00:52:08]} {[%emt 00:09:25]} h6
{[%clk 00:40:19]} {[%emt 00:03:12]} 14. Bxe7 {[%clk 00:32:52]} {[%emt
00:19:46]} Qxe7 {[%clk 00:40:15]} {[%emt 00:00:34]} 15. Rg3 {[%clk 00:31:20]}
{[%emt 00:02:03]} Kf8 {[%clk 00:30:46]} {[%emt 00:09:58]} 16. Qe3 {[%clk
00:30:29]} {[%emt 00:01:21]} c5 {[%clk 00:30:38]} {[%emt 00:00:38]} 17. h5
{[%clk 00:27:33]} {[%emt 00:03:26]} Nc6 {[%clk 00:26:20]} {[%emt 00:04:47]} 18.
Rd1 {[%clk 00:26:55]} {[%emt 00:01:08]} Rb7 {[%clk 00:21:27]} {[%emt 00:05:23]}
19. Qf4 {[%clk 00:26:20]} {[%emt 00:01:05]} Rg8 {[%clk 00:21:04]} {[%emt
00:00:53]} 20. Rd2 {[%clk 00:21:11]} {[%emt 00:05:39]} c4 {[%clk 00:19:02]}
{[%emt 00:02:32]} 21. Nc1 {[%clk 00:20:16]} {[%emt 00:01:25]} b5 {[%clk
00:19:27]} {[%emt 00:00:05]} 22. axb5 {[%clk 00:17:40]} {[%emt 00:03:07]} Rxb5
{[%clk 00:19:55]} {[%emt 00:00:02]} 23. Rh3 {[%clk 00:14:06]} {[%emt 00:04:03]}
a4 {[%clk 00:16:55]} {[%emt 00:03:30]} 24. g4 {[%clk 00:14:27]} {[%emt
00:00:09]} a3 {[%clk 00:15:53]} {[%emt 00:01:31]} 25. bxa3 {[%clk 00:13:57]}
{[%emt 00:01:01]} Qxa3 {[%clk 00:12:11]} {[%emt 00:04:12]} 26. Rc2 {[%clk
00:10:51]} {[%emt 00:03:36]} Ke8 {[%clk 00:06:15]} {[%emt 00:06:26]} 27. g5
{[%clk 00:10:54]} {[%emt 00:00:27]} hxg5 {[%clk 00:05:54]} {[%emt 00:00:51]} 28.
Nxg5 {[%clk 00:11:03]} {[%emt 00:00:21]} Qe7 {[%clk 00:06:10]} {[%emt
00:00:14]} 29. Rf3 {[%clk 00:10:51]} {[%emt 00:00:42]} Rf8 {[%clk 00:04:03]}
{[%emt 00:02:38]} 30. Ra2 {[%clk 00:11:20]} Na5 {[%clk 00:03:43]} {[%emt
00:00:49]} 31. Kd1 {[%clk 00:08:32]} {[%emt 00:03:18]} Nb8 {[%clk 00:03:51]}
{[%emt 00:00:22]} 32. h6 {[%clk 00:08:13]} {[%emt 00:00:50]} gxh6 {[%clk
00:01:58]} {[%emt 00:02:23]} 33. Nh7 {[%clk 00:08:41]} {[%emt 00:00:02]} Nd7
{[%clk 00:01:33]} {[%emt 00:00:55]} 34. Nxf8 {[%clk 00:09:01]} {[%emt
00:00:10]} Qxf8 {[%clk 00:01:33]} {[%emt 00:00:30]} 35. Rg3 {[%clk 00:06:38]}
{[%emt 00:02:53]} Qh8 {[%clk 00:01:00]} {[%emt 00:01:03]} 36. Rh3 {[%clk
00:05:30]} {[%emt 00:01:38]} Qg7 {[%clk 00:01:06]} {[%emt 00:00:24]} 37. Rxh6
{[%clk 00:05:34]} {[%emt 00:00:27]} Kd8 {[%clk 00:00:51]} {[%emt 00:00:46]} 38.
Qh4+ {[%clk 00:03:09]} {[%emt 00:02:55]} Kc7 {[%clk 00:01:20]} {[%emt
00:00:01]} 39. Rh8 {[%clk 00:03:29]} {[%emt 00:00:09]} Qg1+ {[%clk 00:01:17]}
{[%emt 00:00:33]} 40. Kd2 {[%clk 00:02:56]} {[%emt 00:01:04]} Nc6 {[%clk
00:01:01]} {[%emt 00:00:46]} 41. Qg3 {[%clk 00:01:40]} {[%emt 00:01:46]} Qf1
{[%clk 00:01:09]} {[%emt 00:00:22]} 42. Qf3 {[%clk 00:01:57]} {[%emt 00:00:13]}
Rb1 {[%clk 00:01:00]} {[%emt 00:00:39]} 43. Rh1 {[%clk 00:02:09]} {[%emt
00:00:18]} Ndxe5 {[%clk 00:00:33]} {[%emt 00:00:57]} 44. dxe5 {[%clk 00:02:26]}
{[%emt 00:00:13]} Nxe5 {[%clk 00:01:03]} 45. Qxf7+ {[%clk 00:02:33]} {[%emt
00:00:23]} Nxf7 {[%clk 00:01:31]} {[%emt 00:00:02]} 46. Rxf1 {[%clk 00:02:55]}
{[%emt 00:00:07]} Nd6 {[%clk 00:02:00]} 47. f3 {[%clk 00:02:55]} {[%emt
00:00:31]} 1-0

[Event "FINAL CAMPEONATO ABSOLUTO DE AJEDREZ CHILE 2018"]
[Site "CENTRO CULTURAL LO PRADO, Chile"]
[Date "2018.02.25"]
[Round "2.4"]
[White "VERGARA JOFRE, Felipe Andres"]
[Black "BARRIA ZUNIGA, Daniel"]
[Result "1/2-1/2"]
[TimeControl "90 minutos mas 30 segundos de incremento por movida"]
[WhiteTitle "FM"]
[BlackTitle "IM"]
[BlackFideId "3400816"]
[WhiteElo "2270"]
[BlackElo "2395"]

1. e4 {[%clk 01:21:29]} {[%emt 00:09:31]} c5 {[%clk 01:29:45]} {[%emt
00:01:15]} 2. Nf3 {[%clk 01:20:34]} {[%emt 00:01:26]} e6 {[%clk 01:30:06]}
{[%emt 00:00:08]} 3. d4 {[%clk 01:20:59]} {[%emt 00:00:05]} cxd4 {[%clk
01:30:17]} {[%emt 00:00:18]} 4. Nxd4 {[%clk 01:21:26]} {[%emt 00:00:04]} a6
{[%clk 01:30:35]} {[%emt 00:00:12]} 5. Bd3 {[%clk 01:21:51]} {[%emt 00:00:05]}
Bc5 {[%clk 01:30:31]} {[%emt 00:00:33]} 6. Nb3 {[%clk 01:22:17]} {[%emt
00:00:05]} Ba7 {[%clk 01:30:49]} {[%emt 00:00:11]} 7. c4 {[%clk 01:21:38]}
{[%emt 00:01:10]} Nc6 {[%clk 01:29:33]} {[%emt 00:01:45]} 8. Qe2 {[%clk
01:19:12]} {[%emt 00:02:58]} d6 {[%clk 01:28:14]} {[%emt 00:01:48]} 9. Nc3
{[%clk 01:18:33]} {[%emt 00:01:10]} Nf6 {[%clk 01:25:22]} {[%emt 00:03:21]} 10.
O-O {[%clk 01:14:08]} {[%emt 00:04:56]} e5 {[%clk 01:21:08]} {[%emt 00:04:42]}
11. Be3 {[%clk 01:09:03]} {[%emt 00:05:36]} O-O {[%clk 01:16:05]} {[%emt
00:05:32]} 12. Bxa7 {[%clk 01:02:35]} {[%emt 00:06:59]} Rxa7 {[%clk 01:15:57]}
{[%emt 00:00:37]} 13. Rad1 {[%clk 00:52:53]} {[%emt 00:10:13]} Be6 {[%clk
01:07:12]} {[%emt 00:09:14]} 14. Qe3 {[%clk 00:50:56]} {[%emt 00:02:28]} Qb8
{[%clk 00:53:30]} {[%emt 00:14:11]} 15. Be2 {[%clk 00:35:28]} {[%emt 00:16:00]}
b5 {[%clk 00:48:51]} {[%emt 00:05:08]} 16. Nd5 {[%clk 00:23:54]} {[%emt
00:12:04]} Bxd5 {[%clk 00:42:12]} {[%emt 00:07:08]} 17. cxd5 {[%clk 00:23:15]}
{[%emt 00:01:10]} Ne7 {[%clk 00:42:07]} {[%emt 00:00:33]} 18. Na5 {[%clk
00:17:30]} {[%emt 00:06:17]} Rc7 {[%clk 00:39:19]} {[%emt 00:03:16]} 19. Rc1
{[%clk 00:10:47]} {[%emt 00:07:16]} 1/2-1/2

[Event "FINAL CAMPEONATO ABSOLUTO DE AJEDREZ CHILE 2018"]
[Site "CENTRO CULTURAL LO PRADO, Chile"]
[Date "2018.02.25"]
[Round "2.5"]
[White "SALINAS HERRERA, Pablo Patrici"]
[Black "PEREZ GORMAZ, Matias"]
[Result "1-0"]
[TimeControl "90 minutos mas 30 segundos de incremento por movida"]
[WhiteTitle "IM"]
[BlackTitle "FM"]
[WhiteElo "2453"]
[BlackElo "2410"]

1. d4 {[%clk 01:24:02]} {[%emt 00:06:57]} d5 {[%clk 01:29:48]} {[%emt
00:01:12]} 2. c4 {[%clk 01:24:27]} {[%emt 00:00:06]} e6 {[%clk 01:29:54]}
{[%emt 00:00:23]} 3. Nc3 {[%clk 01:24:52]} {[%emt 00:00:05]} Bb4 {[%clk
01:30:00]} {[%emt 00:00:24]} 4. cxd5 {[%clk 01:23:49]} {[%emt 00:01:33]} exd5
{[%clk 01:30:21]} {[%emt 00:00:08]} 5. Bf4 {[%clk 01:24:17]} {[%emt 00:00:03]}
c6 {[%clk 01:22:19]} {[%emt 00:08:32]} 6. e3 {[%clk 01:22:38]} {[%emt
00:02:10]} Ne7 {[%clk 01:22:22]} {[%emt 00:00:27]} 7. Bd3 {[%clk 01:21:47]}
{[%emt 00:01:21]} Bf5 {[%clk 01:22:43]} {[%emt 00:00:09]} 8. Nge2 {[%clk
01:18:58]} {[%emt 00:03:19]} Nd7 {[%clk 01:10:13]} {[%emt 00:12:59]} 9. a3
{[%clk 01:17:15]} {[%emt 00:02:14]} Bxc3+ {[%clk 01:00:53]} {[%emt 00:09:50]}
10. bxc3 {[%clk 01:17:25]} {[%emt 00:00:20]} Bxd3 {[%clk 00:53:28]} {[%emt
00:07:54]} 11. Qxd3 {[%clk 01:17:50]} {[%emt 00:00:05]} Ng6 {[%clk 00:53:37]}
{[%emt 00:00:21]} 12. O-O {[%clk 00:42:40]} {[%emt 00:35:40]} O-O {[%clk
00:53:57]} {[%emt 00:00:10]} 13. c4 {[%clk 00:42:29]} {[%emt 00:00:43]} Nb6
{[%clk 00:48:30]} {[%emt 00:05:57]} 14. cxd5 {[%clk 00:42:36]} {[%emt
00:00:23]} cxd5 {[%clk 00:48:09]} {[%emt 00:00:50]} 15. Rfb1 {[%clk 00:41:44]}
{[%emt 00:01:22]} Qe7 {[%clk 00:28:13]} {[%emt 00:20:26]} 16. Bg3 {[%clk
00:41:06]} {[%emt 00:01:08]} Rfd8 {[%clk 00:16:11]} {[%emt 00:12:32]} 17. Nc3
{[%clk 00:39:16]} {[%emt 00:02:21]} Rd7 {[%clk 00:10:16]} {[%emt 00:06:55]} 18.
a4 {[%clk 00:36:54]} {[%emt 00:03:22]} Nf8 {[%clk 00:01:42]} {[%emt 00:09:04]}
19. a5 {[%clk 00:35:06]} {[%emt 00:02:19]} Nc8 {[%clk 00:02:07]} {[%emt
00:00:05]} 20. Rb5 {[%clk 00:35:05]} {[%emt 00:00:31]} Qd8 {[%clk 00:02:29]}
{[%emt 00:00:08]} 21. Qb1 {[%clk 00:35:10]} {[%emt 00:00:25]} b6 {[%clk
00:01:26]} {[%emt 00:01:33]} 22. Qa2 {[%clk 00:35:23]} {[%emt 00:00:17]} bxa5
{[%clk 00:00:44]} {[%emt 00:01:11]} 23. Rxd5 {[%clk 00:34:12]} {[%emt
00:01:41]} Rxd5 {[%clk 00:00:33]} {[%emt 00:00:41]} 24. Qxd5 {[%clk 00:34:22]}
{[%emt 00:00:20]} Qxd5 {[%clk 00:00:39]} {[%emt 00:00:24]} 25. Nxd5 {[%clk
00:34:48]} {[%emt 00:00:05]} Nb6 {[%clk 00:00:51]} {[%emt 00:00:18]} 26. Ne7+
{[%clk 00:35:14]} {[%emt 00:00:04]} Kh8 {[%clk 00:01:16]} {[%emt 00:00:05]} 27.
Rxa5 {[%clk 00:35:41]} {[%emt 00:00:03]} Nfd7 {[%clk 00:01:08]} {[%emt
00:00:37]} 28. h3 {[%clk 00:35:43]} {[%emt 00:00:28]} a6 {[%clk 00:01:29]}
{[%emt 00:00:09]} 29. Nd5 {[%clk 00:33:16]} {[%emt 00:02:57]} Nxd5 {[%clk
00:00:34]} {[%emt 00:01:25]} 30. Rxd5 {[%clk 00:33:41]} {[%emt 00:00:05]} Nb6
{[%clk 00:00:58]} {[%emt 00:00:06]} 31. Ra5 {[%clk 00:33:50]} {[%emt 00:00:21]}
f6 {[%clk 00:00:32]} {[%emt 00:00:57]} 32. Bc7 {[%clk 00:34:06]} {[%emt
00:00:14]} Nc4 {[%clk 00:00:45]} {[%emt 00:00:17]} 33. Rc5 {[%clk 00:34:31]}
{[%emt 00:00:05]} Na3 {[%clk 00:00:55]} {[%emt 00:00:20]} 34. d5 {[%clk
00:34:51]} {[%emt 00:00:11]} Nb5 {[%clk 00:00:54]} {[%emt 00:00:31]} 35. d6
{[%clk 00:35:16]} {[%emt 00:00:05]} 1-0